[Event "27th OIBM 2024"]
[Site "Gmund am Tegernsee"]
[Date "2024.10.26"]
[Round "1.16"]
[White "Heinz, Axel"]
[Black "Weber, Benedikt"]
[Result "1-0"]
[ECO "B11"]
[WhiteElo "2412"]
[BlackElo "2088"]
[Annotator "RC"]
[PlyCount "75"]
[EventDate "2024.09.16"]
[EventType "swiss"]
[EventCountry "GER"]
[SourceTitle "playchess.com"]
[Source "ChessBase"]
[SourceQuality "1"]
[TimeControl "40/5400+30:1800+30"]

1. e4 {[%emt 0:00:01]} c6 {[%emt 0:00:07]} 2. Nc3 {[%emt 0:00:19]} d5 {[%emt 0:00:15]} 3. Nf3 {[%emt 0:00:22]} Bg4 {[%emt 0:01:03]} 4. h3 {[%emt 0:00:12]} Bxf3 {[%emt 0:00:17]} 5. Qxf3 {[%emt 0:00:07]} e6 {[%emt 0:00:19]} 6. d3 {[%emt 0:03:33]} Nf6 {[%emt 0:01:37]} 7. Bd2 {[%emt 0:02:06]} Bb4 {[%emt 0:04:44]} 8. a3 {[%emt 0:11:29]} Bd6 {[%emt 0:04:41]} 9. g4 {[%emt 0:09:25]} d4 {[%emt 0:13:04]} 10. Ne2 {[%emt 0:05:06]} c5 {[%emt 0:03:08]} 11. g5 {[%emt 0:07:44]} Nfd7 {[%emt 0:00:23]} 12. h4 {[%emt 0:15:31]} Nc6 {[%emt 0:00:30]} 13. Qh3 {[%emt 0:03:25]} Qc7 {[%emt 0:19:18]} 14. Bg2 {[%emt 0:00:54]} e5 {[%emt 0:02:04]} 15. Rf1 {[%emt 0:07:58]} O-O-O {[%emt 0:03:08]} 16. f4 {[%emt 0:01:56]} Kb8 {[%emt 0:07:23]} 17. O-O-O {[%emt 0:13:50]} Nb6 {[%emt 0:07:51]} 18. Kb1 {[%emt 0:00:48]} c4 {[%emt 0:01:55]} 19. dxc4 {[%emt 0:00:37]} Nxc4 {[%emt 0:00:21]} 20. Qb3 {[%emt 0:05:59]} Nxd2+ {[%emt 0:05:57]} 21. Rxd2 {[%emt 0:00:05]} exf4 {[%emt 0:04:02]} 22. Nxd4 {[%emt 0:00:50]} Be5 {[%emt 0:08:19]} 23. Nxc6+ {[%emt 0:00:25]} Qxc6 {[%emt 0:00:03]} 24. Rd5 {[%emt 0:00:25]} f6 {[%emt 0:01:24]} 25. Rfd1 {[%emt 0:00:19]} Rc8 {[%emt 0:04:46]} 26. Bh3 {[%emt 0:00:24]} Rcf8 {[%emt 0:02:11]} 27. Bg4 {[%emt 0:04:20]} Bc7 {[%emt 0:01:52]} 28. e5 {[%emt 0:01:26]} Rd8 {[%emt 0:03:03]} 29. gxf6 {[%emt 0:03:27]} gxf6 {[%emt 0:00:37]} 30. e6 {[%emt 0:00:47]} Rxd5 {[%emt 0:00:26]} 31. Rxd5 {[%emt 0:00:18]} Bb6 {[%emt 0:00:40]} 32. Bf3 {[%emt 0:00:40]} Qc7 {[%emt 0:00:21]} 33. Rd7 {[%emt 0:00:13]} Qc8 {[%emt 0:00:39]} 34. Rxb7+ {[%emt 0:00:56]} Qxb7 {[%emt 0:00:05]} 35. Bxb7 {[%emt 0:00:05]} Kxb7 {[%emt 0:00:04]} 36. Qd5+ {[%emt 0:00:08]} Kb8 {[%emt 0:00:13]} 37. e7 {[%emt 0:00:54]} Kc7 {[%emt 0:01:06]} 38. Qf7 {[%emt 0:02:26]} 1-0

[Event "27th OIBM 2024"]
[Site "Gmund am Tegernsee"]
[Date "2024.10.26"]
[Round "1.17"]
[White "Jahnz, Laurin"]
[Black "Dotzer, Lukas"]
[Result "1-0"]
[ECO "B51"]
[WhiteElo "2086"]
[BlackElo "2407"]
[Annotator "RC"]
[PlyCount "103"]
[EventDate "2024.09.16"]
[EventType "swiss"]
[EventCountry "GER"]
[SourceTitle "playchess.com"]
[Source "ChessBase"]
[SourceQuality "1"]
[TimeControl "40/5400+30:1800+30"]

1. e4 {[%emt 0:00:02]} c5 {[%emt 0:00:04]} 2. Nf3 {[%emt 0:00:03]} d6 {[%emt 0:00:07]} 3. Bb5+ {[%emt 0:00:04]} Nd7 {[%emt 0:00:08]} 4. O-O {[%emt 0:00:07]} a6 {[%emt 0:00:05]} 5. Bxd7+ {[%emt 0:00:12]} Bxd7 {[%emt 0:00:07]} 6. Qe2 {[%emt 0:00:50]} Nf6 {[%emt 0:07:17]} 7. Rd1 {[%emt 0:00:10]} g6 {[%emt 0:03:25]} 8. c3 {[%emt 0:01:37]} Bg7 {[%emt 0:06:28]} 9. d4 {[%emt 0:00:10]} cxd4 {[%emt 0:01:30]} 10. cxd4 {[%emt 0:00:04]} d5 {[%emt 0:12:27]} 11. e5 {[%emt 0:02:14]} Ne4 {[%emt 0:01:31]} 12. Nfd2 {[%emt 0:03:25]} Ng5 {[%emt 0:04:16]} 13. Nc3 {[%emt 0:03:23]} Ne6 {[%emt 0:06:29]} 14. Nf1 {[%emt 0:00:40]} Bc6 {[%emt 0:03:35]} 15. Ng3 {[%emt 0:04:32]} O-O {[%emt 0:05:06]} 16. f4 {[%emt 0:03:35]} f5 {[%emt 0:13:11]} 17. Qd3 {[%emt 0:21:20]} b5 {[%emt 0:05:15]} 18. a3 {[%emt 0:02:02]} Qb6 {[%emt 0:03:11]} 19. Be3 {[%emt 0:02:08]} Rfc8 {[%emt 0:05:12]} 20. b4 {[%emt 0:04:38]} Bb7 {[%emt 0:01:36]} 21. a4 {[%emt 0:06:44]} Rc4 {[%emt 0:01:33]} 22. axb5 {[%emt 0:02:02]} axb5 {[%emt 0:03:24]} 23. Rxa8+ {[%emt 0:00:16]} Bxa8 {[%emt 0:00:04]} 24. Na2 {[%emt 0:10:13]} Qa6 {[%emt 0:06:16]} 25. Rd2 {[%emt 0:00:49]} Nd8 {[%emt 0:00:43]} 26. Ne2 {[%emt 0:02:29]} Nc6 {[%emt 0:01:07]} 27. Rb2 {[%emt 0:00:50]} e6 {[%emt 0:02:25]} 28. Bd2 {[%emt 0:03:40]} Bf8 {[%emt 0:02:00]} 29. Bc3 {[%emt 0:00:13]} Qa4 {[%emt 0:02:18]} 30. Qd2 {[%emt 0:00:15]} Be7 {[%emt 0:01:36]} 31. Kf2 {[%emt 0:02:08]} Bd8 {[%emt 0:00:52]} 32. Nac1 {[%emt 0:01:58]} Qa7 {[%emt 0:01:40]} 33. Ra2 {[%emt 0:01:05]} Qb8 {[%emt 0:01:14]} 34. Nd3 {[%emt 0:04:56]} Be7 {[%emt 0:00:32]} 35. Nb2 {[%emt 0:02:39]} Kf7 {[%emt 0:00:42]} 36. Nxc4 {[%emt 0:00:52]} bxc4 {[%emt 0:00:26]} 37. b5 {[%emt 0:01:14]} Na7 {[%emt 0:00:17]} 38. Bb4 {[%emt 0:00:32]} Bh4+ {[%emt 0:00:34]} 39. g3 {[%emt 0:00:21]} Bd8 {[%emt 0:00:05]} 40. Bd6 {[%emt 0:01:05]} Qb7 {[%emt 0:00:06]} 41. Qb4 {[%emt 0:32:08]} Bb6 {[%emt 0:11:21]} 42. Qa3 {[%emt 0:00:00]} c3 {[%emt 0:01:33]} 43. Qxc3 {[%emt 0:00:00]} Nxb5 {[%emt 0:00:37]} 44. Qb4 {[%emt 0:00:00]} Qc6 {[%emt 0:07:40]} 45. Rb2 {[%emt 0:00:00]} Nxd6 {[%emt 0:00:38]} 46. Qxd6 {[%emt 0:00:00]} Ba5 {[%emt 0:04:13]} 47. Ra2 {[%emt 0:00:00]} Qb5 {[%emt 0:00:38]} 48. Qc5 {[%emt 0:00:00]} Be1+ {[%emt 0:00:18]} 49. Kf1 {[%emt 0:00:00]} Qb1 {[%emt 0:00:29]} 50. Ra7+ {[%emt 0:00:00]} Bb7 {[%emt 0:00:13]} 51. Qc7+ {[%emt 0:00:00]} Ke8 {[%emt 0:00:36]} 52. Qb8+ {[%emt 0:00:00]} 1-0

[Event "27th OIBM 2024"]
[Site "Gmund am Tegernsee"]
[Date "2024.10.26"]
[Round "1.18"]
[White "Meins, Gerlef"]
[Black "Wunder, Niklas"]
[Result "1/2-1/2"]
[ECO "D23"]
[WhiteElo "2384"]
[BlackElo "2085"]
[Annotator "RC"]
[PlyCount "80"]
[EventDate "2024.09.16"]
[EventType "swiss"]
[EventCountry "GER"]
[SourceTitle "playchess.com"]
[Source "ChessBase"]
[SourceQuality "1"]
[TimeControl "40/5400+30:1800+30"]

1. d4 {[%emt 0:03:48]} d5 {[%emt 0:00:12]} 2. c4 {[%emt 0:00:15]} c6 {[%emt 0:00:07]} 3. Nf3 {[%emt 0:00:16]} Nf6 {[%emt 0:00:11]} 4. Qc2 {[%emt 0:02:07]} dxc4 {[%emt 0:02:23]} 5. Qxc4 {[%emt 0:00:09]} Bf5 {[%emt 0:01:13]} 6. Nc3 {[%emt 0:04:39]} e6 {[%emt 0:03:07]} 7. g3 {[%emt 0:02:06]} Be7 {[%emt 0:02:32]} 8. Bg2 {[%emt 0:01:03]} Nbd7 {[%emt 0:05:48]} 9. O-O {[%emt 0:01:56]} O-O {[%emt 0:00:48]} 10. Re1 {[%emt 0:04:06]} Ne4 {[%emt 0:02:34]} 11. Qb3 {[%emt 0:09:16]} Qb6 {[%emt 0:09:23]} 12. Nh4 {[%emt 0:05:36]} Bxh4 {[%emt 0:09:53]} 13. gxh4 {[%emt 0:01:16]} Ndf6 {[%emt 0:01:40]} 14. f3 {[%emt 0:14:35]} Nxc3 {[%emt 0:01:34]} 15. bxc3 {[%emt 0:00:13]} e5 {[%emt 0:00:52]} 16. Qxb6 {[%emt 0:13:31]} axb6 {[%emt 0:00:03]} 17. e4 {[%emt 0:00:56]} Be6 {[%emt 0:00:34]} 18. a4 {[%emt 0:00:40]} Nd7 {[%emt 0:10:05]} 19. Ba3 {[%emt 0:11:03]} Rfe8 {[%emt 0:06:51]} 20. Bd6 {[%emt 0:01:27]} Ra5 {[%emt 0:10:41]} 21. dxe5 {[%emt 0:07:27]} Nxe5 {[%emt 0:01:54]} 22. Bxe5 {[%emt 0:01:57]} Rxe5 {[%emt 0:00:09]} 23. Reb1 {[%emt 0:00:27]} b5 {[%emt 0:08:38]} 24. axb5 {[%emt 0:00:50]} cxb5 {[%emt 0:03:18]} 25. Ra7 {[%emt 0:04:24]} Rc5 {[%emt 0:05:07]} 26. Rxb7 {[%emt 0:00:25]} Rxc3 {[%emt 0:00:45]} 27. R1xb5 {[%emt 0:01:03]} g6 {[%emt 0:02:24]} 28. h5 {[%emt 0:00:56]} Kg7 {[%emt 0:00:26]} 29. Kf2 {[%emt 0:00:58]} Kh6 {[%emt 0:03:02]} 30. hxg6 {[%emt 0:00:40]} hxg6 {[%emt 0:00:07]} 31. h4 {[%emt 0:01:54]} f5 {[%emt 0:04:30]} 32. Rb8 {[%emt 0:05:20]} Rxb8 {[%emt 0:01:29]} 33. Rxb8 {[%emt 0:00:02]} fxe4 {[%emt 0:00:58]} 34. fxe4 {[%emt 0:00:13]} Kh5 {[%emt 0:00:57]} 35. Re8 {[%emt 0:00:58]} Bc4 {[%emt 0:01:05]} 36. Rc8 {[%emt 0:00:57]} Kxh4 {[%emt 0:01:22]} 37. Bf1 {[%emt 0:00:39]} Rc2+ {[%emt 0:00:15]} 38. Ke3 {[%emt 0:00:06]} Bb3 {[%emt 0:00:22]} 39. Rxc2 {[%emt 0:01:08]} Bxc2 {[%emt 0:00:09]} 40. e5 {[%emt 0:00:06]} Bf5 {[%emt 0:01:02]} 1/2-1/2

[Event "27th OIBM 2024"]
[Site "Gmund am Tegernsee"]
[Date "2024.10.26"]
[Round "1.19"]
[White "Frey, Michael"]
[Black "Morawietz, Dieter"]
[Result "1/2-1/2"]
[ECO "C02"]
[WhiteElo "2084"]
[BlackElo "2372"]
[Annotator "RC"]
[PlyCount "133"]
[EventDate "2024.09.16"]
[EventType "swiss"]
[EventCountry "GER"]
[SourceTitle "playchess.com"]
[Source "ChessBase"]
[SourceQuality "1"]
[TimeControl "40/5400+30:1800+30"]

1. e4 {[%emt 0:00:05]} e6 {[%emt 0:00:13]} 2. d4 {[%emt 0:00:10]} d5 {[%emt 0:00:05]} 3. e5 {[%emt 0:00:12]} c5 {[%emt 0:00:10]} 4. c3 {[%emt 0:00:11]} Nc6 {[%emt 0:00:06]} 5. Nf3 {[%emt 0:00:13]} Qb6 {[%emt 0:00:10]} 6. Bd3 {[%emt 0:00:15]} cxd4 {[%emt 0:00:11]} 7. cxd4 {[%emt 0:00:10]} Bd7 {[%emt 0:00:08]} 8. O-O {[%emt 0:03:49]} Nxd4 {[%emt 0:00:08]} 9. Nbd2 {[%emt 0:01:37]} a6 {[%emt 0:15:13]} 10. Nxd4 {[%emt 0:02:41]} Qxd4 {[%emt 0:00:10]} 11. Nf3 {[%emt 0:00:10]} Qb4 {[%emt 0:15:20]} 12. a3 {[%emt 0:03:06]} Qe7 {[%emt 0:02:04]} 13. Be3 {[%emt 0:04:09]} Qd8 {[%emt 0:04:56]} 14. Rc1 {[%emt 0:04:04]} Ne7 {[%emt 0:12:27]} 15. Ng5 {[%emt 0:15:34]} h6 {[%emt 0:01:46]} 16. Nf3 {[%emt 0:07:37]} Nc6 {[%emt 0:02:08]} 17. Re1 {[%emt 0:01:48]} Be7 {[%emt 0:03:18]} 18. b4 {[%emt 0:01:27]} Qb8 {[%emt 0:16:25]} 19. Bb6 {[%emt 0:05:13]} O-O {[%emt 0:02:41]} 20. Bb1 {[%emt 0:01:03]} Rc8 {[%emt 0:02:17]} 21. Qd3 {[%emt 0:01:27]} g6 {[%emt 0:00:09]} 22. h4 {[%emt 0:02:45]} Be8 {[%emt 0:04:34]} 23. Rc3 {[%emt 0:04:49]} Na7 {[%emt 0:04:28]} 24. h5 {[%emt 0:03:01]} Nb5 {[%emt 0:02:33]} 25. Rcc1 {[%emt 0:03:56]} Rc4 {[%emt 0:04:26]} 26. hxg6 {[%emt 0:02:12]} fxg6 {[%emt 0:00:12]} 27. Rxc4 {[%emt 0:03:50]} dxc4 {[%emt 0:00:11]} 28. Qxc4 {[%emt 0:00:15]} Qc8 {[%emt 0:00:37]} 29. Qf4 {[%emt 0:02:57]} Nc3 {[%emt 0:02:11]} 30. Qxh6 {[%emt 0:01:48]} Nxb1 {[%emt 0:00:10]} 31. Rxb1 {[%emt 0:00:11]} Qc6 {[%emt 0:02:54]} 32. Bc5 {[%emt 0:01:44]} Bxc5 {[%emt 0:01:09]} 33. bxc5 {[%emt 0:00:06]} Rd8 {[%emt 0:00:30]} 34. Ng5 {[%emt 0:01:15]} Rd7 {[%emt 0:00:12]} 35. Qh4 {[%emt 0:06:55]} Qc7 {[%emt 0:02:57]} 36. Ne4 {[%emt 0:00:53]} Rg7 {[%emt 0:00:09]} 37. Nf6+ {[%emt 0:00:20]} Kf7 {[%emt 0:00:07]} 38. Rb4 {[%emt 0:05:49]} Bc6 {[%emt 0:00:39]} 39. Rf4 {[%emt 0:02:52]} g5 {[%emt 0:01:22]} 40. Qh5+ {[%emt 0:00:10]} Ke7 {[%emt 0:00:26]} 41. Qh6 {[%emt 0:31:24]} Rf7 {[%emt 0:03:23]} 42. Ng8+ {[%emt 0:00:00]} Kd8 {[%emt 0:00:29]} 43. Qxg5+ {[%emt 0:00:00]} Kc8 {[%emt 0:00:14]} 44. Rxf7 {[%emt 0:00:00]} Qxf7 {[%emt 0:00:06]} 45. Ne7+ {[%emt 0:00:00]} Kd7 {[%emt 0:00:16]} 46. Ng6 {[%emt 0:00:00]} Be4 {[%emt 0:01:40]} 47. Qd2+ {[%emt 0:00:00]} Kc8 {[%emt 0:02:22]} 48. Nf4 {[%emt 0:00:00]} Qf5 {[%emt 0:00:38]} 49. f3 {[%emt 0:00:00]} Bc6 {[%emt 0:01:19]} 50. Qe3 {[%emt 0:00:00]} a5 {[%emt 0:02:30]} 51. g4 {[%emt 0:00:00]} Qc2 {[%emt 0:00:10]} 52. g5 {[%emt 0:00:00]} Qf5 {[%emt 0:04:04]} 53. g6 {[%emt 0:00:00]} Bb5 {[%emt 0:10:17]} 54. Qe4 {[%emt 0:00:00]} Qg5+ {[%emt 0:00:09]} 55. Ng2 {[%emt 0:00:00]} Be8 {[%emt 0:00:32]} 56. Qg4 {[%emt 0:00:00]} Qxg6 {[%emt 0:00:12]} 57. Qxg6 {[%emt 0:00:00]} Bxg6 {[%emt 0:00:05]} 58. Kf2 {[%emt 0:00:00]} Kc7 {[%emt 0:00:35]} 59. Ke3 {[%emt 0:00:00]} Kc6 {[%emt 0:00:05]} 60. Kd4 {[%emt 0:00:00]} Kb5 {[%emt 0:11:32]} 61. Ne3 Ka4 {[%emt 0:00:00]} 62. Nc4 {[%emt 0:00:00]} Be8 {[%emt 0:00:00]} 63. f4 {[%emt 0:00:00]} Bc6 {[%emt 0:00:00]} 64. Kc3 {[%emt 0:00:48]} Kb5 {[%emt 0:02:00]} 65. Kd4 {[%emt 0:00:10]} Ka4 {[%emt 0:00:00]} 66. Kc3 {[%emt 0:00:30]} Kb5 {[%emt 0:01:00]} 67. Kd4 1/2-1/2

[Event "27th OIBM 2024"]
[Site "Gmund am Tegernsee"]
[Date "2024.10.26"]
[Round "1.20"]
[White "Colpe, Malte"]
[Black "Wenner, Tobias"]
[Result "1-0"]
[ECO "B07"]
[WhiteElo "2371"]
[BlackElo "2082"]
[Annotator "RC"]
[PlyCount "75"]
[EventDate "2024.09.16"]
[EventType "swiss"]
[EventCountry "GER"]
[SourceTitle "playchess.com"]
[Source "ChessBase"]
[SourceQuality "1"]
[TimeControl "40/5400+30:1800+30"]

1. d4 {[%emt 0:00:04]} Nf6 {[%emt 0:00:07]} 2. Nf3 {[%emt 0:00:17]} g6 {[%emt 0:00:10]} 3. g3 {[%emt 0:00:17]} Bg7 {[%emt 0:00:06]} 4. Bg2 {[%emt 0:00:06]} O-O {[%emt 0:00:24]} 5. O-O {[%emt 0:00:15]} d6 {[%emt 0:00:08]} 6. Re1 {[%emt 0:00:38]} Nbd7 {[%emt 0:00:49]} 7. e4 {[%emt 0:00:31]} e5 {[%emt 0:03:08]} 8. Nc3 {[%emt 0:00:41]} c6 {[%emt 0:01:13]} 9. a4 {[%emt 0:00:39]} a5 {[%emt 0:01:25]} 10. h3 {[%emt 0:01:21]} Re8 {[%emt 0:02:53]} 11. Be3 {[%emt 0:02:41]} b6 {[%emt 0:10:08]} 12. d5 {[%emt 0:13:42]} c5 {[%emt 0:00:42]} 13. Nd2 {[%emt 0:02:39]} Ba6 {[%emt 0:06:03]} 14. Bf1 {[%emt 0:10:29]} Bxf1 {[%emt 0:05:47]} 15. Rxf1 {[%emt 0:00:10]} Nb8 {[%emt 0:00:48]} 16. Nc4 {[%emt 0:05:07]} Na6 {[%emt 0:04:08]} 17. Ra3 {[%emt 0:03:46]} Rb8 {[%emt 0:03:43]} 18. Rb3 {[%emt 0:01:59]} h6 {[%emt 0:09:17]} 19. Qe2 {[%emt 0:03:13]} Nb4 {[%emt 0:05:34]} 20. Bc1 {[%emt 0:04:59]} Qd7 {[%emt 0:07:34]} 21. Kg2 {[%emt 0:47:26]} Bf8 {[%emt 0:04:12]} 22. Nb5 {[%emt 0:00:00]} Kh7 {[%emt 0:06:00]} 23. Rf3 {[%emt 0:00:00]} Nh5 {[%emt 0:13:38]} 24. c3 {[%emt 0:00:00]} Na6 {[%emt 0:00:52]} 25. Ncxd6 {[%emt 0:00:00]} Bxd6 {[%emt 0:00:11]} 26. Nxd6 {[%emt 0:00:00]} Qxd6 {[%emt 0:00:02]} 27. Qxa6 {[%emt 0:00:00]} Re7 {[%emt 0:02:24]} 28. Qe2 {[%emt 0:00:00]} Ng7 {[%emt 0:00:41]} 29. Qd2 {[%emt 0:00:00]} g5 {[%emt 0:01:18]} 30. h4 {[%emt 0:00:00]} g4 {[%emt 0:01:18]} 31. Re3 {[%emt 0:00:00]} f5 {[%emt 0:00:58]} 32. exf5 {[%emt 0:00:00]} Nxf5 {[%emt 0:01:10]} 33. Re4 {[%emt 0:00:00]} Rg8 {[%emt 0:02:45]} 34. Rfe1 {[%emt 0:00:00]} Qf6 {[%emt 0:01:14]} 35. Qe2 {[%emt 0:00:00]} Nd6 {[%emt 0:02:16]} 36. Rxg4 {[%emt 0:00:00]} Rxg4 {[%emt 0:01:30]} 37. Qxg4 {[%emt 0:00:00]} Rg7 {[%emt 0:00:08]} 38. Qe6 {[%emt 0:00:00]} 1-0

[Event "27th OIBM 2024"]
[Site "Gmund am Tegernsee"]
[Date "2024.10.26"]
[Round "1.21"]
[White "Krauseneck, Peter"]
[Black "Beikert, Guenther"]
[Result "1/2-1/2"]
[ECO "C30"]
[WhiteElo "2080"]
[BlackElo "2365"]
[Annotator "RC"]
[PlyCount "62"]
[EventDate "2024.09.16"]
[EventType "swiss"]
[EventCountry "GER"]
[SourceTitle "playchess.com"]
[Source "ChessBase"]
[SourceQuality "1"]
[TimeControl "40/5400+30:1800+30"]

1. e4 {[%emt 1:31:00]} e5 {[%emt 0:05:01]} 2. f4 {[%emt 0:00:00]} Bc5 {[%emt 0:00:33]} 3. Nf3 {[%emt 0:00:00]} d6 {[%emt 0:00:07]} 4. Bc4 {[%emt 0:00:00]} Nf6 {[%emt 0:00:27]} 5. d3 {[%emt 0:00:00]} Nc6 {[%emt 0:00:39]} 6. c3 {[%emt 0:00:00]} Bb6 {[%emt 0:00:30]} 7. fxe5 {[%emt 0:00:00]} Nxe5 {[%emt 0:01:29]} 8. Nxe5 {[%emt 0:00:00]} dxe5 {[%emt 0:00:07]} 9. Bg5 {[%emt 0:00:00]} h6 {[%emt 0:03:24]} 10. Bxf6 {[%emt 0:00:00]} Qxf6 {[%emt 0:00:26]} 11. Qf3 {[%emt 0:00:00]} Qxf3 {[%emt 0:06:14]} 12. gxf3 {[%emt 0:00:00]} f5 {[%emt 0:00:34]} 13. h4 {[%emt 0:00:00]} Rf8 {[%emt 0:04:46]} 14. Nd2 {[%emt 0:06:30]} fxe4 15. dxe4 {[%emt 0:00:00]} Ke7 {[%emt 0:06:35]} 16. Ke2 {[%emt 0:00:00]} Rf6 {[%emt 0:03:07]} 17. Nf1 {[%emt 0:00:00]} Be6 {[%emt 0:05:22]} 18. Ne3 {[%emt 0:00:00]} Bxe3 {[%emt 0:00:39]} 19. Bxe6 {[%emt 0:00:00]} Bf4 {[%emt 1:00:00]} 20. Bg4 {[%emt 0:03:00]} Rb6 {[%emt 0:00:30]} 21. b3 {[%emt 0:00:30]} Rc6 {[%emt 0:00:30]} 22. c4 {[%emt 0:00:00]} b5 {[%emt 0:00:30]} 23. cxb5 {[%emt 0:00:00]} Rc2+ {[%emt 0:00:30]} 24. Kd3 {[%emt 0:00:00]} Rd2+ {[%emt 0:00:00]} 25. Kc4 {[%emt 0:00:00]} Rad8 {[%emt 0:01:00]} 26. Kb4 {[%emt 0:02:30]} Be3 {[%emt 0:00:30]} 27. Rac1 {[%emt 0:00:00]} Bb6 {[%emt 0:00:00]} 28. a4 {[%emt 0:00:00]} R8d4+ {[%emt 0:00:00]} 29. Rc4 {[%emt 0:00:00]} Kd6 {[%emt 0:00:00]} 30. Rhc1 {[%emt 0:00:00]} Rxc4+ {[%emt 0:00:00]} 31. Rxc4 {[%emt 0:00:00]} Rd4 {[%emt 0:00:00]} 1/2-1/2

[Event "27th OIBM 2024"]
[Site "Gmund am Tegernsee"]
[Date "2024.10.26"]
[Round "1.22"]
[White "Schramm, Christian"]
[Black "Tscharotschkin, Michael"]
[Result "1-0"]
[ECO "C01"]
[WhiteElo "2361"]
[BlackElo "2079"]
[Annotator "RC"]
[PlyCount "69"]
[EventDate "2024.09.16"]
[EventType "swiss"]
[EventCountry "GER"]
[SourceTitle "playchess.com"]
[Source "ChessBase"]
[SourceQuality "1"]
[TimeControl "40/5400+30:1800+30"]

1. e4 {[%emt 0:00:03]} e6 {[%emt 0:00:06]} 2. d4 {[%emt 0:00:12]} d5 {[%emt 0:00:05]} 3. Nc3 {[%emt 0:00:38]} Bb4 {[%emt 0:00:07]} 4. exd5 {[%emt 0:00:37]} exd5 {[%emt 0:00:07]} 5. Bd3 {[%emt 0:00:10]} c6 {[%emt 0:00:26]} 6. Qf3 {[%emt 0:00:18]} Qf6 {[%emt 0:00:41]} 7. Bf4 {[%emt 0:06:16]} Bd6 {[%emt 0:02:37]} 8. Nge2 {[%emt 0:06:48]} Bxf4 {[%emt 0:01:39]} 9. Nxf4 {[%emt 0:00:24]} Ne7 {[%emt 0:01:26]} 10. O-O-O {[%emt 0:02:43]} O-O {[%emt 0:03:35]} 11. Rde1 {[%emt 0:18:25]} Ng6 {[%emt 0:04:05]} 12. Nce2 {[%emt 0:08:53]} Nd7 {[%emt 0:09:42]} 13. c3 {[%emt 0:02:28]} Re8 {[%emt 0:04:34]} 14. h4 {[%emt 0:14:39]} Ndf8 {[%emt 0:01:07]} 15. Qg3 {[%emt 0:10:10]} Nxf4 {[%emt 0:02:06]} 16. Nxf4 {[%emt 0:00:30]} Bf5 {[%emt 0:01:36]} 17. Qg5 {[%emt 0:00:53]} Qxg5 {[%emt 0:03:08]} 18. hxg5 {[%emt 0:00:13]} Bxd3 {[%emt 0:05:27]} 19. Nxd3 {[%emt 0:00:13]} Nd7 {[%emt 0:05:06]} 20. Ne5 {[%emt 0:04:59]} Nxe5 {[%emt 0:00:48]} 21. Rxe5 {[%emt 0:00:20]} Rxe5 {[%emt 0:13:41]} 22. dxe5 {[%emt 0:00:03]} Re8 {[%emt 0:00:34]} 23. f4 {[%emt 0:00:18]} Re6 {[%emt 0:01:50]} 24. Kd2 {[%emt 0:00:48]} Rg6 {[%emt 0:00:29]} 25. Ke3 {[%emt 0:05:42]} h6 {[%emt 0:02:21]} 26. Kd4 {[%emt 0:13:16]} hxg5 {[%emt 0:01:27]} 27. f5 {[%emt 0:00:48]} Rh6 {[%emt 0:00:08]} 28. Rxh6 {[%emt 0:00:49]} gxh6 {[%emt 0:00:24]} 29. Kc5 {[%emt 0:00:39]} Kf8 {[%emt 0:09:44]} 30. Kd6 {[%emt 0:00:02]} Ke8 {[%emt 0:02:42]} 31. g4 {[%emt 0:00:02]} a5 {[%emt 0:04:51]} 32. b3 {[%emt 0:00:11]} b5 {[%emt 0:03:06]} 33. Kxc6 {[%emt 0:01:52]} b4 {[%emt 0:01:11]} 34. cxb4 {[%emt 0:00:05]} d4 {[%emt 0:02:31]} 35. bxa5 {[%emt 0:00:13]} 1-0

[Event "27th OIBM 2024"]
[Site "Gmund am Tegernsee"]
[Date "2024.10.26"]
[Round "1.23"]
[White "Spence, Isaac"]
[Black "Frischmann, Rick"]
[Result "1/2-1/2"]
[ECO "B03"]
[WhiteElo "2077"]
[BlackElo "2355"]
[Annotator "RC"]
[PlyCount "56"]
[EventDate "2024.09.16"]
[EventType "swiss"]
[EventCountry "GER"]
[SourceTitle "playchess.com"]
[Source "ChessBase"]
[SourceQuality "1"]
[TimeControl "40/5400+30:1800+30"]

1. e4 {[%emt 0:00:05]} Nf6 {[%emt 0:00:09]} 2. e5 {[%emt 0:00:18]} Nd5 {[%emt 0:00:05]} 3. c4 {[%emt 0:00:06]} Nb6 {[%emt 0:00:05]} 4. d4 {[%emt 0:00:07]} d6 {[%emt 0:00:06]} 5. f4 {[%emt 0:00:10]} dxe5 {[%emt 0:00:09]} 6. fxe5 {[%emt 0:00:06]} Bf5 {[%emt 0:00:12]} 7. Nc3 {[%emt 0:00:17]} e6 {[%emt 0:00:06]} 8. Nf3 {[%emt 0:00:38]} Bb4 {[%emt 0:02:54]} 9. Be2 {[%emt 0:00:31]} c5 {[%emt 0:00:39]} 10. Bg5 {[%emt 0:00:25]} Qd7 {[%emt 0:04:58]} 11. O-O {[%emt 0:00:38]} cxd4 {[%emt 0:12:58]} 12. Nxd4 {[%emt 0:00:12]} Bg6 {[%emt 0:00:18]} 13. Ncb5 {[%emt 0:18:19]} O-O {[%emt 0:06:36]} 14. a3 {[%emt 0:06:54]} Be7 {[%emt 0:00:05]} 15. Qd2 {[%emt 0:12:10]} Nc6 {[%emt 0:12:23]} 16. Bxe7 {[%emt 0:03:08]} Qxe7 {[%emt 0:01:20]} 17. Nxc6 {[%emt 0:00:22]} bxc6 {[%emt 0:00:04]} 18. Nd6 {[%emt 0:00:25]} Nd7 {[%emt 0:04:54]} 19. Qf4 {[%emt 0:05:33]} c5 {[%emt 0:18:29]} 20. Rad1 {[%emt 0:11:37]} f6 {[%emt 0:09:00]} 21. exf6 {[%emt 0:00:29]} gxf6 {[%emt 0:02:05]} 22. Qe3 {[%emt 0:02:39]} f5 {[%emt 0:08:55]} 23. Bf3 {[%emt 0:06:06]} f4 {[%emt 0:00:49]} 24. Qe2 {[%emt 0:11:20]} Rad8 {[%emt 0:02:11]} 25. Bg4 {[%emt 0:02:12]} Rf6 {[%emt 0:03:21]} 26. Ne4 {[%emt 0:00:06]} Rff8 {[%emt 0:00:28]} 27. Nd6 {[%emt 0:00:27]} Rf6 {[%emt 0:00:04]} 28. Ne4 {[%emt 0:00:16]} Rff8 {[%emt 0:00:04]} 1/2-1/2